[Event "*** Titled Tuesday Blitz"]
[Site "Chess.com"]
[Date "2020.05.12"]
[Round "3"]
[White "TregubovP"]
[Black "vladimir_petrov"]
[Result "1-0"]
[WhiteElo "2523"]
[BlackElo "2298"]
[TimeControl "180+1"]
[EndTime "10:27:45 PDT"]
[Termination "TregubovP won on time"]

1. e4 {[%clk 0:03:00.9]} 1... c5 {[%clk 0:02:58.6]} 2. Nf3 {[%clk 0:03:00.1]}
2... d6 {[%clk 0:02:59.1]} 3. c3 {[%clk 0:02:58]} 3... Nf6 {[%clk 0:02:56.6]} 4.
Be2 {[%clk 0:02:58.5]} 4... e6 {[%clk 0:02:53.7]} 5. O-O {[%clk 0:02:55.9]} 5...
Be7 {[%clk 0:02:53.3]} 6. Re1 {[%clk 0:02:55.6]} 6... O-O {[%clk 0:02:52.1]} 7.
Bf1 {[%clk 0:02:56.2]} 7... b6 {[%clk 0:02:39.5]} 8. d4 {[%clk 0:02:54.8]} 8...
Bb7 {[%clk 0:02:38.7]} 9. Bd3 {[%clk 0:02:48.8]} 9... Nc6 {[%clk 0:02:26.3]} 10.
Bg5 {[%clk 0:02:37.9]} 10... cxd4 {[%clk 0:02:23.8]} 11. cxd4 {[%clk 0:02:36.9]}
11... Nb4 {[%clk 0:02:22.9]} 12. Nc3 {[%clk 0:02:35.7]} 12... Nxd3 {[%clk
0:02:04]} 13. Qxd3 {[%clk 0:02:35.7]} 13... a6 {[%clk 0:01:47.8]} 14. a4 {[%clk
0:02:27.2]} 14... Rc8 {[%clk 0:01:46.5]} 15. Rac1 {[%clk 0:02:19.9]} 15... Qd7
{[%clk 0:01:36.9]} 16. h3 {[%clk 0:02:18.4]} 16... Nh5 {[%clk 0:01:19.8]} 17.
Bxe7 {[%clk 0:02:15.3]} 17... Qxe7 {[%clk 0:01:20.7]} 18. Qe3 {[%clk 0:02:12.4]}
18... Qf6 {[%clk 0:01:14.2]} 19. Ne2 {[%clk 0:01:57.6]} 19... Qg6 {[%clk
0:01:10.7]} 20. Nd2 {[%clk 0:01:48.3]} 20... f5 {[%clk 0:01:01]} 21. f3 {[%clk
0:01:41.6]} 21... f4 {[%clk 0:00:58.8]} 22. Qb3 {[%clk 0:01:36.3]} 22... Rxc1
{[%clk 0:00:13.5]} 23. Rxc1 {[%clk 0:01:34.9]} 23... Bc8 {[%clk 0:00:13.8]} 24.
Nc4 {[%clk 0:01:26.2]} 24... Kh8 {[%clk 0:00:09.9]} 25. Nxb6 {[%clk 0:01:18.6]}
25... Bb7 {[%clk 0:00:07.4]} 26. Nd7 {[%clk 0:01:17.9]} 26... Rg8 {[%clk
0:00:04.9]} 27. Qxb7 {[%clk 0:01:16.3]} 27... Ng3 {[%clk 0:00:05.2]} 28. Qxa6
{[%clk 0:00:55.4]} 28... h5 {[%clk 0:00:03.1]} 29. Nxf4 {[%clk 0:00:38]} 29...
Qf7 {[%clk 0:00:02.2]} 30. Qxd6 {[%clk 0:00:37.3]} 1-0

[Event "*** Titled Tuesday Blitz"]
[Site "Chess.com"]
[Date "2020.05.12"]
[Round "3"]
[White "allvim"]
[Black "OMGCovid-19"]
[Result "1-0"]
[WhiteElo "2281"]
[BlackElo "1910"]
[TimeControl "180+1"]
[EndTime "10:27:45 PDT"]
[Termination "allvim won on time"]

1. e4 {[%clk 0:03:00.9]} 1... e6 {[%clk 0:01:47.5]} 2. d4 {[%clk 0:02:57.8]}
2... d5 {[%clk 0:01:47.7]} 3. Nd2 {[%clk 0:02:57.6]} 3... Nf6 {[%clk 0:01:47.4]}
4. e5 {[%clk 0:02:57.6]} 4... Nfd7 {[%clk 0:01:47.6]} 5. Bd3 {[%clk 0:02:58.2]}
5... c5 {[%clk 0:01:47.7]} 6. c3 {[%clk 0:02:58.8]} 6... Nc6 {[%clk 0:01:48]} 7.
Ne2 {[%clk 0:02:58.1]} 7... cxd4 {[%clk 0:01:48.2]} 8. cxd4 {[%clk 0:02:59]}
8... f6 {[%clk 0:01:48.5]} 9. exf6 {[%clk 0:02:58.9]} 9... Nxf6 {[%clk
0:01:48.7]} 10. Nf3 {[%clk 0:02:59.5]} 10... Bd6 {[%clk 0:01:32.3]} 11. O-O
{[%clk 0:02:56.8]} 11... Qc7 {[%clk 0:01:31.6]} 12. g3 {[%clk 0:02:57]} 12...
O-O {[%clk 0:01:30.8]} 13. Bf4 {[%clk 0:02:56.4]} 13... Bd7 {[%clk 0:01:17.1]}
14. Rc1 {[%clk 0:02:54.6]} 14... Rae8 {[%clk 0:01:14.7]} 15. Bxd6 {[%clk
0:02:46.2]} 15... Qxd6 {[%clk 0:01:14]} 16. Nc3 {[%clk 0:02:46.7]} 16... a6
{[%clk 0:01:08.3]} 17. Re1 {[%clk 0:02:45.9]} 17... Kh8 {[%clk 0:01:08.2]} 18.
Na4 {[%clk 0:02:26.4]} 18... e5 {[%clk 0:00:19.7]} 19. dxe5 {[%clk 0:01:59.3]}
19... Nxe5 {[%clk 0:00:19.8]} 20. Nxe5 {[%clk 0:02:00.2]} 20... Bxa4 {[%clk
0:00:17.9]} 21. Qxa4 {[%clk 0:01:59]} 21... Rxe5 {[%clk 0:00:17.3]} 22. Rxe5
{[%clk 0:01:58.3]} 22... Qxe5 {[%clk 0:00:17.4]} 23. Qb4 {[%clk 0:01:36.2]}
23... Re8 {[%clk 0:00:07.8]} 24. Qxb7 {[%clk 0:01:30.1]} 24... Ng4 {[%clk
0:00:07.8]} 25. Qb4 {[%clk 0:01:13.1]} 25... Nxf2 {[%clk 0:00:07.5]} 26. Qc3
{[%clk 0:00:41.2]} 26... Qe3 {[%clk 0:00:05.5]} 27. Bf1 {[%clk 0:00:36.1]} 27...
Nh3+ {[%clk 0:00:04.9]} 28. Kg2 {[%clk 0:00:36.2]} 28... Qxc3 {[%clk 0:00:02.1]}
29. Rxc3 {[%clk 0:00:37.1]} 29... Ng5 {[%clk 0:00:01.9]} 30. Rd3 {[%clk
0:00:35.2]} 1-0

[Event "*** Titled Tuesday Blitz"]
[Site "Chess.com"]
[Date "2020.05.12"]
[Round "3"]
[White "LyonBeast"]
[Black "jacky72"]
[Result "1-0"]
[WhiteElo "2906"]
[BlackElo "2650"]
[TimeControl "180+1"]
[EndTime "10:27:48 PDT"]
[Termination "LyonBeast won by resignation"]

1. e4 {[%clk 0:03:00.9]} 1... e5 {[%clk 0:02:59.7]} 2. Nf3 {[%clk 0:03:00.4]}
2... Nc6 {[%clk 0:03:00.1]} 3. Be2 {[%clk 0:02:58.3]} 3... Nf6 {[%clk
0:02:59.2]} 4. Nc3 {[%clk 0:02:51.4]} 4... d5 {[%clk 0:02:54.4]} 5. exd5 {[%clk
0:02:50]} 5... Nxd5 {[%clk 0:02:55.3]} 6. O-O {[%clk 0:02:47.7]} 6... Nxc3
{[%clk 0:02:52.6]} 7. dxc3 {[%clk 0:02:42.8]} 7... Qxd1 {[%clk 0:02:50.6]} 8.
Rxd1 {[%clk 0:02:43.4]} 8... a6 {[%clk 0:02:46.1]} 9. Be3 {[%clk 0:02:33.3]}
9... Be7 {[%clk 0:02:44.2]} 10. b4 {[%clk 0:02:29.6]} 10... Bf5 {[%clk
0:02:42.2]} 11. Rd2 {[%clk 0:02:21.9]} 11... O-O {[%clk 0:02:42.4]} 12. a4
{[%clk 0:02:19.2]} 12... f6 {[%clk 0:02:29]} 13. Bc4+ {[%clk 0:02:17.1]} 13...
Kh8 {[%clk 0:02:29.2]} 14. Nh4 {[%clk 0:02:16.5]} 14... Be4 {[%clk 0:01:32.3]}
15. f3 {[%clk 0:02:12.6]} 15... f5 {[%clk 0:01:28.5]} 16. Bf2 {[%clk 0:02:05.1]}
16... g5 {[%clk 0:01:28.3]} 17. fxe4 {[%clk 0:02:04.5]} 17... gxh4 {[%clk
0:01:28.8]} 18. exf5 {[%clk 0:02:04.6]} 18... Rxf5 {[%clk 0:01:29.7]} 19. Re1
{[%clk 0:01:54.5]} 19... Bg5 {[%clk 0:01:28.1]} 20. Rde2 {[%clk 0:01:54.5]}
20... Rd8 {[%clk 0:01:20.4]} 21. Bd3 {[%clk 0:01:50.2]} 21... Rf7 {[%clk
0:01:12.5]} 22. b5 {[%clk 0:01:50.1]} 22... axb5 {[%clk 0:01:13.4]} 23. axb5
{[%clk 0:01:50.5]} 23... Na5 {[%clk 0:01:09.2]} 24. Rxe5 {[%clk 0:01:49.7]}
24... Bf6 {[%clk 0:01:02.3]} 25. Re8+ {[%clk 0:01:49.6]} 25... Rxe8 {[%clk
0:01:02.8]} 26. Rxe8+ {[%clk 0:01:49.9]} 26... Kg7 {[%clk 0:01:03.7]} 27. c4
{[%clk 0:01:46.7]} 27... b6 {[%clk 0:00:58.9]} 28. Re4 {[%clk 0:01:44.7]} 28...
Be7 {[%clk 0:00:54.2]} 29. Bd4+ {[%clk 0:01:42]} 29... Kf8 {[%clk 0:00:54.5]}
30. Re2 {[%clk 0:01:30.7]} 30... Bf6 {[%clk 0:00:33.8]} 31. Bxf6 {[%clk
0:01:29.4]} 31... Rxf6 {[%clk 0:00:34.7]} 32. Re4 {[%clk 0:01:26.5]} 32... Rh6
{[%clk 0:00:31.9]} 33. Kf2 {[%clk 0:01:21.2]} 33... Kf7 {[%clk 0:00:30.2]} 34.
Ke3 {[%clk 0:01:19.9]} 34... h3 {[%clk 0:00:29.6]} 35. g3 {[%clk 0:01:18.1]}
35... Rh5 {[%clk 0:00:29.6]} 36. Be2 {[%clk 0:01:17.7]} 36... Rh6 {[%clk
0:00:25.8]} 37. g4 {[%clk 0:01:15.8]} 37... Nb7 {[%clk 0:00:21.8]} 38. g5 {[%clk
0:01:16.1]} 38... Re6 {[%clk 0:00:20.2]} 39. Bh5+ {[%clk 0:01:16.6]} 39... Ke7
{[%clk 0:00:19.9]} 40. Bg4 {[%clk 0:01:15.5]} 40... Rxe4+ {[%clk 0:00:19.3]} 41.
Kxe4 {[%clk 0:01:16.3]} 41... Kd6 {[%clk 0:00:18.9]} 42. Bxh3 {[%clk 0:01:15.3]}
42... Kc5 {[%clk 0:00:17.6]} 43. Bf5 {[%clk 0:01:13.8]} 43... Nd6+ {[%clk
0:00:18.5]} 44. Kf4 {[%clk 0:01:14.2]} 44... Kxc4 {[%clk 0:00:12.7]} 45. Bxh7
{[%clk 0:01:13.5]} 45... Kxb5 {[%clk 0:00:13.6]} 46. Bd3+ {[%clk 0:01:14]} 46...
Kc5 {[%clk 0:00:13.4]} 47. h4 {[%clk 0:01:14.5]} 47... Ne8 {[%clk 0:00:14.3]}
48. h5 {[%clk 0:01:14.8]} 48... Kd6 {[%clk 0:00:14.9]} 49. h6 {[%clk 0:01:15.1]}
49... Ke7 {[%clk 0:00:11.3]} 50. h7 {[%clk 0:01:14.7]} 50... Nd6 {[%clk
0:00:12.2]} 51. h8=Q {[%clk 0:01:14.6]} 51... Nf7 {[%clk 0:00:12.5]} 52. Qf6+
{[%clk 0:01:14.5]} 1-0

[Event "*** Titled Tuesday Blitz"]
[Site "Chess.com"]
[Date "2020.05.12"]
[Round "3"]
[White "Gromes7"]
[Black "diskeleven"]
[Result "0-1"]
[WhiteElo "2113"]
[BlackElo "2343"]
[TimeControl "180+1"]
[EndTime "10:27:48 PDT"]
[Termination "diskeleven won by resignation"]

1. d4 {[%clk 0:03:00.9]} 1... Nf6 {[%clk 0:02:59.5]} 2. g3 {[%clk 0:03:00.8]}
2... c5 {[%clk 0:02:59.1]} 3. Nf3 {[%clk 0:02:58.2]} 3... cxd4 {[%clk
0:02:58.4]} 4. Qxd4 {[%clk 0:02:47.8]} 4... Nc6 {[%clk 0:02:57.7]} 5. Qf4 {[%clk
0:02:47.4]} 5... e5 {[%clk 0:02:48.2]} 6. Qd2 {[%clk 0:02:47]} 6... d5 {[%clk
0:02:41.1]} 7. Bg2 {[%clk 0:02:39.3]} 7... Ne4 {[%clk 0:02:36.1]} 8. Qd1 {[%clk
0:02:38.1]} 8... Qa5+ {[%clk 0:02:31.8]} 9. c3 {[%clk 0:02:34.9]} 9... Bc5
{[%clk 0:02:25.8]} 10. O-O {[%clk 0:02:33.7]} 10... Qb6 {[%clk 0:02:21.7]} 11.
Nbd2 {[%clk 0:02:25.8]} 11... Nxf2 {[%clk 0:02:19.2]} 12. Rxf2 {[%clk
0:02:04.3]} 12... Bxf2+ {[%clk 0:02:18.4]} 13. Kf1 {[%clk 0:02:04.4]} 13... h5
{[%clk 0:02:01.8]} 14. Nb3 {[%clk 0:01:47.6]} 14... h4 {[%clk 0:01:53.4]} 15.
Nxh4 {[%clk 0:01:42.1]} 15... Rxh4 {[%clk 0:01:52.9]} 16. gxh4 {[%clk
0:01:42.3]} 16... Bxh4 {[%clk 0:01:52.6]} 17. e3 {[%clk 0:01:34.3]} 17... Be6
{[%clk 0:01:39.7]} 18. Qh5 {[%clk 0:01:28.7]} 18... Be7 {[%clk 0:01:14.2]} 19.
e4 {[%clk 0:00:41.4]} 19... dxe4 {[%clk 0:01:08.8]} 20. Bxe4 {[%clk 0:00:31.9]}
20... Bc4+ {[%clk 0:01:08.3]} 21. Kg2 {[%clk 0:00:26.8]} 21... O-O-O {[%clk
0:01:02.5]} 22. Nd2 {[%clk 0:00:18.2]} 22... Be6 {[%clk 0:00:51.9]} 23. Nf3
{[%clk 0:00:13.5]} 23... g6 {[%clk 0:00:48]} 24. Qh6 {[%clk 0:00:09.9]} 24... f5
{[%clk 0:00:43.7]} 25. Bc2 {[%clk 0:00:08.4]} 25... Bd5 {[%clk 0:00:39.2]} 26.
Qe3 {[%clk 0:00:07.3]} 26... Qa6 {[%clk 0:00:28]} 27. Bd3 {[%clk 0:00:06.6]}
27... Bxf3+ {[%clk 0:00:24.3]} 0-1

[Event "*** Titled Tuesday Blitz"]
[Site "Chess.com"]
[Date "2020.05.12"]
[Round "3"]
[White "Thee-Chessboy"]
[Black "Norival"]
[Result "0-1"]
[WhiteElo "2404"]
[BlackElo "2653"]
[TimeControl "180+1"]
[EndTime "10:27:49 PDT"]
[Termination "Norival won by resignation"]

1. d4 {[%clk 0:03:00.9]} 1... d5 {[%clk 0:02:56.8]} 2. c4 {[%clk 0:03:00.9]}
2... c6 {[%clk 0:02:56.8]} 3. Nf3 {[%clk 0:03:01]} 3... Nf6 {[%clk 0:02:57]} 4.
e3 {[%clk 0:03:01.3]} 4... Bf5 {[%clk 0:02:55.8]} 5. Nc3 {[%clk 0:03:01.3]} 5...
e6 {[%clk 0:02:56.2]} 6. Bd3 {[%clk 0:03:01.7]} 6... Bg6 {[%clk 0:02:55.3]} 7.
O-O {[%clk 0:03:00.4]} 7... Nbd7 {[%clk 0:02:55.1]} 8. b3 {[%clk 0:02:57.2]}
8... Be7 {[%clk 0:02:53.6]} 9. Qc2 {[%clk 0:02:56.9]} 9... O-O {[%clk
0:02:51.3]} 10. Bb2 {[%clk 0:02:56.9]} 10... a5 {[%clk 0:02:50.7]} 11. e4 {[%clk
0:02:54.1]} 11... dxe4 {[%clk 0:02:49.6]} 12. Nxe4 {[%clk 0:02:55]} 12... a4
{[%clk 0:02:50]} 13. Rfd1 {[%clk 0:02:49.6]} 13... Re8 {[%clk 0:02:44.3]} 14.
Ne5 {[%clk 0:02:41.6]} 14... Qc7 {[%clk 0:02:10.5]} 15. Nxg6 {[%clk 0:02:39]}
15... hxg6 {[%clk 0:02:09.2]} 16. Nxf6+ {[%clk 0:02:32.7]} 16... Bxf6 {[%clk
0:02:05.7]} 17. Bc3 {[%clk 0:02:15.7]} 17... Qb6 {[%clk 0:01:56.4]} 18. c5
{[%clk 0:02:10.3]} 18... Qa7 {[%clk 0:01:50.9]} 19. b4 {[%clk 0:02:09.4]} 19...
b5 {[%clk 0:01:48]} 20. Be4 {[%clk 0:01:58.6]} 20... Qc7 {[%clk 0:01:46.9]} 21.
g3 {[%clk 0:01:56.7]} 21... Rad8 {[%clk 0:01:44.1]} 22. Rd2 {[%clk 0:01:50.7]}
22... Be7 {[%clk 0:01:43.1]} 23. Rad1 {[%clk 0:01:48]} 23... Nf6 {[%clk
0:01:43.2]} 24. Bf3 {[%clk 0:01:48.4]} 24... Rd7 {[%clk 0:01:43.2]} 25. h4
{[%clk 0:01:46.3]} 25... Red8 {[%clk 0:01:43.1]} 26. a3 {[%clk 0:01:44.6]} 26...
Nd5 {[%clk 0:01:43.2]} 27. Bb2 {[%clk 0:01:44.6]} 27... Bf6 {[%clk 0:01:43.4]}
28. Kg2 {[%clk 0:01:42.3]} 28... Ne7 {[%clk 0:01:43.3]} 29. Be4 {[%clk
0:01:39.3]} 29... Nf5 {[%clk 0:01:41.3]} 30. Bxf5 {[%clk 0:01:37.4]} 30... gxf5
{[%clk 0:01:42.2]} 31. Bc3 {[%clk 0:01:24.1]} 31... Rd5 {[%clk 0:01:41.7]} 32.
h5 {[%clk 0:01:19.1]} 32... f4 {[%clk 0:01:32.5]} 33. g4 {[%clk 0:01:16.5]}
33... f3+ {[%clk 0:01:28.4]} 34. Kxf3 {[%clk 0:01:16.2]} 34... Bg5 {[%clk
0:01:28.4]} 35. Rd3 {[%clk 0:01:14.9]} 35... Qf4+ {[%clk 0:01:28.1]} 36. Kg2
{[%clk 0:01:14.7]} 36... Qxg4+ {[%clk 0:01:27.5]} 37. Kf1 {[%clk 0:01:15.1]}
37... Qxh5 {[%clk 0:01:25.9]} 38. Rg3 {[%clk 0:01:12.5]} 38... Bf4 {[%clk
0:01:21.2]} 39. Rg2 {[%clk 0:01:09.8]} 39... Bh6 {[%clk 0:00:56.6]} 40. Rd3
{[%clk 0:01:06.2]} 40... Kf8 {[%clk 0:00:55.8]} 41. Rdg3 {[%clk 0:01:03.6]}
41... g6 {[%clk 0:00:54.4]} 0-1

[Event "*** Titled Tuesday Blitz"]
[Site "Chess.com"]
[Date "2020.05.12"]
[Round "3"]
[White "LivajaM"]
[Black "Shankovskyi"]
[Result "1-0"]
[WhiteElo "2271"]
[BlackElo "2569"]
[TimeControl "180+1"]
[EndTime "10:27:52 PDT"]
[Termination "LivajaM won by resignation"]

1. d4 {[%clk 0:02:30.5]} 1... e6 {[%clk 0:03:00.9]} 2. c4 {[%clk 0:02:29.7]}
2... d5 {[%clk 0:02:59]} 3. Nc3 {[%clk 0:02:27.9]} 3... f5 {[%clk 0:02:59.4]} 4.
g3 {[%clk 0:02:20.1]} 4... c6 {[%clk 0:02:58.8]} 5. Qd3 {[%clk 0:02:19.4]} 5...
Nf6 {[%clk 0:02:58.6]} 6. Nh3 {[%clk 0:02:18.2]} 6... Bd6 {[%clk 0:02:56.4]} 7.
Bf4 {[%clk 0:02:16.5]} 7... O-O {[%clk 0:02:56.5]} 8. Bg2 {[%clk 0:02:16]} 8...
b6 {[%clk 0:02:46.5]} 9. Bxd6 {[%clk 0:02:07.3]} 9... Qxd6 {[%clk 0:02:47.4]}
10. cxd5 {[%clk 0:02:07.5]} 10... exd5 {[%clk 0:02:45.4]} 11. O-O {[%clk
0:02:06.6]} 11... Ne4 {[%clk 0:02:40.9]} 12. Rfe1 {[%clk 0:02:02.8]} 12... Ba6
{[%clk 0:02:36]} 13. Qc2 {[%clk 0:02:02.5]} 13... Nd7 {[%clk 0:02:35.3]} 14. Nf4
{[%clk 0:02:00.3]} 14... Ndf6 {[%clk 0:02:23.5]} 15. Rad1 {[%clk 0:01:54.6]}
15... Nxc3 {[%clk 0:02:12.7]} 16. Qxc3 {[%clk 0:01:51.1]} 16... Ne4 {[%clk
0:02:12.7]} 17. Qc2 {[%clk 0:01:51]} 17... Rac8 {[%clk 0:02:07.1]} 18. Qa4
{[%clk 0:01:40.9]} 18... Bb5 {[%clk 0:01:59.9]} 19. Qc2 {[%clk 0:01:32.7]} 19...
g5 {[%clk 0:01:51.9]} 20. Nd3 {[%clk 0:01:30.4]} 20... Bxd3 {[%clk 0:01:50]} 21.
exd3 {[%clk 0:01:21.6]} 21... Nf6 {[%clk 0:01:48.7]} 22. Re5 {[%clk 0:01:21.3]}
22... Ng4 {[%clk 0:01:46.9]} 23. Re2 {[%clk 0:01:16.8]} 23... Rfe8 {[%clk
0:01:39.9]} 24. Rde1 {[%clk 0:01:16.4]} 24... Kf7 {[%clk 0:01:36.8]} 25. Bh3
{[%clk 0:01:13]} 25... h5 {[%clk 0:01:29.8]} 26. Qd2 {[%clk 0:01:09.4]} 26...
Qf6 {[%clk 0:01:11.8]} 27. Bxg4 {[%clk 0:00:57.2]} 27... hxg4 {[%clk 0:01:11]}
28. Re5 {[%clk 0:00:54.7]} 28... c5 {[%clk 0:01:03.7]} 29. Qe3 {[%clk
0:00:51.9]} 29... Rxe5 {[%clk 0:01:00.4]} 30. dxe5 {[%clk 0:00:52.2]} 30... Qe7
{[%clk 0:00:55.2]} 31. e6+ {[%clk 0:00:51]} 31... Kg6 {[%clk 0:00:55.7]} 32. Qe5
{[%clk 0:00:48]} 32... Rd8 {[%clk 0:00:53.6]} 33. Kg2 {[%clk 0:00:35.5]} 33...
a5 {[%clk 0:00:46.8]} 34. a3 {[%clk 0:00:33.5]} 34... a4 {[%clk 0:00:45.7]} 35.
Re2 {[%clk 0:00:28.8]} 35... d4 {[%clk 0:00:27]} 36. Kg1 {[%clk 0:00:27.7]}
36... Rh8 {[%clk 0:00:25.6]} 37. Qxh8 {[%clk 0:00:26.4]} 1-0

[Event "*** Titled Tuesday Blitz"]
[Site "Chess.com"]
[Date "2020.05.12"]
[Round "3"]
[White "canary2016"]
[Black "javirec"]
[Result "0-1"]
[WhiteElo "1912"]
[BlackElo "2287"]
[TimeControl "180+1"]
[EndTime "10:27:52 PDT"]
[Termination "javirec won by checkmate"]

1. Nf3 {[%clk 0:03:00.9]} 1... Nf6 {[%clk 0:02:54.8]} 2. g3 {[%clk 0:03:00.5]}
2... g6 {[%clk 0:02:48.6]} 3. Bg2 {[%clk 0:03:00.8]} 3... Bg7 {[%clk 0:02:48.2]}
4. O-O {[%clk 0:03:00.9]} 4... O-O {[%clk 0:02:46.5]} 5. d4 {[%clk 0:03:01]}
5... d6 {[%clk 0:02:46.2]} 6. c4 {[%clk 0:03:00.7]} 6... Nbd7 {[%clk 0:02:45.2]}
7. Nc3 {[%clk 0:03:00.7]} 7... e5 {[%clk 0:02:44.8]} 8. e4 {[%clk 0:03:00.5]}
8... exd4 {[%clk 0:02:44]} 9. Nxd4 {[%clk 0:03:00.1]} 9... Nc5 {[%clk
0:02:44.1]} 10. Re1 {[%clk 0:02:58.3]} 10... a5 {[%clk 0:02:42.2]} 11. Be3
{[%clk 0:02:53.9]} 11... Re8 {[%clk 0:02:41.7]} 12. Qc2 {[%clk 0:02:53.5]} 12...
c6 {[%clk 0:02:36.9]} 13. Rad1 {[%clk 0:02:52.6]} 13... Qc7 {[%clk 0:02:33.2]}
14. Bf4 {[%clk 0:02:41.8]} 14... Nh5 {[%clk 0:02:21.7]} 15. Be3 {[%clk
0:02:33.8]} 15... Nf6 {[%clk 0:02:12]} 16. Bf4 {[%clk 0:02:33.5]} 16... Nfd7
{[%clk 0:02:12.1]} 17. Nde2 {[%clk 0:02:24.7]} 17... Ne5 {[%clk 0:02:11.2]} 18.
Nd4 {[%clk 0:02:08.3]} 18... Nxc4 {[%clk 0:02:04.9]} 19. b3 {[%clk 0:02:03.2]}
19... Ne5 {[%clk 0:02:01.4]} 20. Nf3 {[%clk 0:01:52]} 20... Bg4 {[%clk
0:01:47.3]} 21. Bxe5 {[%clk 0:01:39.1]} 21... dxe5 {[%clk 0:01:45.3]} 22. h3
{[%clk 0:01:37.4]} 22... Bxf3 {[%clk 0:01:42.2]} 23. Bxf3 {[%clk 0:01:35.8]}
23... Ne6 {[%clk 0:01:42.6]} 24. Rc1 {[%clk 0:01:31.9]} 24... Nd4 {[%clk
0:01:38.9]} 25. Qd3 {[%clk 0:01:31.3]} 25... Rad8 {[%clk 0:01:30]} 26. Nd5
{[%clk 0:01:20.7]} 26... Qd6 {[%clk 0:01:23.7]} 27. Nc3 {[%clk 0:01:16.1]} 27...
Qf6 {[%clk 0:01:19.6]} 28. Bg4 {[%clk 0:01:04.1]} 28... Nxb3 {[%clk 0:01:09]}
29. Qc4 {[%clk 0:00:57.4]} 29... Nxc1 {[%clk 0:01:06.2]} 30. Rxc1 {[%clk
0:00:57.3]} 30... h5 {[%clk 0:01:03.4]} 31. Be2 {[%clk 0:00:55.2]} 31... Rd2
{[%clk 0:01:01.7]} 32. Na4 {[%clk 0:00:52.5]} 32... b5 {[%clk 0:00:54.9]} 33.
Qxc6 {[%clk 0:00:50.5]} 33... Qxc6 {[%clk 0:00:54.4]} 34. Rxc6 {[%clk
0:00:49.3]} 34... Rxe2 {[%clk 0:00:54.6]} 35. Nc5 {[%clk 0:00:49.1]} 35... Rc2
{[%clk 0:00:53.3]} 36. Rc7 {[%clk 0:00:47.5]} 36... Bf8 {[%clk 0:00:48.9]} 37.
Ne6 {[%clk 0:00:45.1]} 37... Rxc7 {[%clk 0:00:47]} 38. Nxc7 {[%clk 0:00:45]}
38... Rb8 {[%clk 0:00:46.5]} 39. Nd5 {[%clk 0:00:43.8]} 39... b4 {[%clk
0:00:44]} 40. Kf1 {[%clk 0:00:43.2]} 40... a4 {[%clk 0:00:43.7]} 41. Ke2 {[%clk
0:00:43]} 41... b3 {[%clk 0:00:43.4]} 42. axb3 {[%clk 0:00:43.2]} 42... axb3
{[%clk 0:00:43]} 43. Kd2 {[%clk 0:00:43]} 43... b2 {[%clk 0:00:43.1]} 44. Nf6+
{[%clk 0:00:42.1]} 44... Kg7 {[%clk 0:00:42.6]} 45. Nd7 {[%clk 0:00:42]} 45...
b1=Q {[%clk 0:00:36.3]} 46. Nxe5 {[%clk 0:00:41.7]} 46... Rb2+ {[%clk
0:00:32.8]} 47. Ke3 {[%clk 0:00:41.4]} 47... Qe1+ {[%clk 0:00:32.1]} 48. Kf4
{[%clk 0:00:41.3]} 48... Rxf2+ {[%clk 0:00:31.5]} 49. Kg5 {[%clk 0:00:41]} 49...
Be7# {[%clk 0:00:28.1]} 0-1

[Event "*** Titled Tuesday Blitz"]
[Site "Chess.com"]
[Date "2020.05.12"]
[Round "3"]
[White "ASVZ"]
[Black "michaelk123"]
[Result "1-0"]
[WhiteElo "2368"]
[BlackElo "2521"]
[TimeControl "180+1"]
[EndTime "10:27:54 PDT"]
[Termination "ASVZ won by resignation"]

1. e4 {[%clk 0:02:24.3]} 1... c6 {[%clk 0:02:59.4]} 2. d4 {[%clk 0:02:23.5]}
2... d5 {[%clk 0:02:59.8]} 3. e5 {[%clk 0:02:23.8]} 3... Bf5 {[%clk 0:03:00.2]}
4. Nf3 {[%clk 0:02:24]} 4... e6 {[%clk 0:03:00.1]} 5. Be2 {[%clk 0:02:24.6]}
5... c5 {[%clk 0:03:00]} 6. dxc5 {[%clk 0:02:23.2]} 6... Bxc5 {[%clk 0:02:58.5]}
7. a3 {[%clk 0:02:23.1]} 7... Nc6 {[%clk 0:02:57.7]} 8. b4 {[%clk 0:02:22.3]}
8... Bb6 {[%clk 0:02:56.7]} 9. Nbd2 {[%clk 0:02:22.5]} 9... Nge7 {[%clk
0:02:56.3]} 10. O-O {[%clk 0:02:22.2]} 10... O-O {[%clk 0:02:56.5]} 11. c4
{[%clk 0:02:21.2]} 11... dxc4 {[%clk 0:02:55]} 12. Nxc4 {[%clk 0:02:19.9]} 12...
Qd5 {[%clk 0:02:48.5]} 13. Be3 {[%clk 0:02:02.4]} 13... Bc7 {[%clk 0:02:20.9]}
14. Nd6 {[%clk 0:01:39.8]} 14... Nxe5 {[%clk 0:01:42]} 15. Nxf5 {[%clk
0:01:34.9]} 15... Nxf5 {[%clk 0:01:29.6]} 16. Qxd5 {[%clk 0:01:21.3]} 16... exd5
{[%clk 0:01:30.5]} 17. Nxe5 {[%clk 0:01:12.8]} 17... Bxe5 {[%clk 0:01:22.7]} 18.
Rad1 {[%clk 0:01:11.7]} 18... d4 {[%clk 0:01:12.5]} 19. Bc1 {[%clk 0:01:09.6]}
19... Rad8 {[%clk 0:01:03.5]} 20. Bd3 {[%clk 0:01:09.7]} 20... Nd6 {[%clk
0:00:57.8]} 21. Bb2 {[%clk 0:01:09.9]} 21... g6 {[%clk 0:00:53.1]} 22. f4 {[%clk
0:01:08.6]} 22... Bf6 {[%clk 0:00:51.7]} 23. Kf2 {[%clk 0:01:08.4]} 23... Rfe8
{[%clk 0:00:51.7]} 24. Rfe1 {[%clk 0:01:08.5]} 24... h5 {[%clk 0:00:48.7]} 25.
Kf3 {[%clk 0:01:05]} 25... Kg7 {[%clk 0:00:46.2]} 26. g3 {[%clk 0:01:04.6]}
26... b6 {[%clk 0:00:42.5]} 27. h3 {[%clk 0:01:04.8]} 27... a5 {[%clk
0:00:38.1]} 28. g4 {[%clk 0:01:02.3]} 28... hxg4+ {[%clk 0:00:38.7]} 29. hxg4
{[%clk 0:01:02.4]} 29... axb4 {[%clk 0:00:37.3]} 30. g5 {[%clk 0:01:01.4]} 30...
Be7 {[%clk 0:00:31.4]} 31. Bxd4+ {[%clk 0:01:00.3]} 31... f6 {[%clk 0:00:29.7]}
32. Rxe7+ {[%clk 0:00:57.6]} 32... Rxe7 {[%clk 0:00:29.6]} 33. gxf6+ {[%clk
0:00:58]} 33... Kf7 {[%clk 0:00:30.2]} 34. fxe7 {[%clk 0:00:58.4]} 34... Kxe7
{[%clk 0:00:30.8]} 35. Bxb6 {[%clk 0:00:53.5]} 35... Rb8 {[%clk 0:00:25.7]} 36.
Bc7 {[%clk 0:00:50.8]} 36... Rf8 {[%clk 0:00:19.9]} 37. Bxd6+ {[%clk 0:00:42.2]}
37... Kxd6 {[%clk 0:00:20.8]} 38. Bxg6+ {[%clk 0:00:42.2]} 38... Kc5 {[%clk
0:00:19.6]} 39. axb4+ {[%clk 0:00:42.5]} 39... Kxb4 {[%clk 0:00:20]} 40. Rc1
{[%clk 0:00:40.3]} 40... Kb3 {[%clk 0:00:17.8]} 41. f5 {[%clk 0:00:40.2]} 41...
Kb2 {[%clk 0:00:18.7]} 42. Rc7 {[%clk 0:00:39.7]} 1-0